bitfinex/quotes_ETHUSD_20250815
["timestamp","ask_amount","ask_price","bid_price","bid_amount"]
[1755260820649,0.5569155,4624.4,4623.2,0.108]
[1755260820855,0.5569155,4624.4,4622.8,0.001]
[1755260820856,2.16293225,4623.4,4622.8,0.001]
[1755260821034,3.451,4623.5,4622.8,2.16418423]
[1755260821252,5.6138246,4623.6,4622.8,2.16418423]
[1755260821457,6.82937928,4623.6,4622.9,2.16313532]
[1755260821658,0.4379,4623.6,4622.8,0.001]
[1755260821941,0.552,4624.6,4623.2,2.16296751]
[1755260821942,3.451,4623.8,4623.2,2.16296751]
[1755260822252,0.60515375,4623.7,4623.0,2.16309755]
[1755260822576,0.60515375,4623.7,4622.8,0.001]
[1755260822577,3.451,4623.9,4623.1,0.0216305]
[1755260822775,3.451,4624.0,4623.5,0.108]
[1755260822942,3.451,4624.0,4623.6,0.4563]
[1755260823139,3.451,4624.1,4623.8,2.16271722]
[1755260823361,3.451,4624.1,4623.7,2.61906557]
[1755260823535,0.4764791,4624.3,4623.9,2.16267594]
[1755260823739,3.451,4624.3,4623.2,0.4647]
[1755260824042,3.451,4624.5,4623.6,2.16278218]
[1755260824241,0.002,4624.2,4623.7,2.16276853]
[1755260824441,0.002,4624.2,4623.2,0.4647]
[1755260824653,0.002,4624.2,4623.5,0.4563]
[1755260824883,0.002,4624.2,4623.7,3.0]
[1755260825086,0.002,4624.2,4624.1,2.16258298]
[1755260825285,0.002,4624.2,4624.1,2.61888298]
[1755260825581,0.002,4624.2,4624.1,2.6405088]
[1755260826080,0.002,4624.2,4624.1,3.1052088]
[1755260826255,0.002,4624.2,4624.1,3.61036896]
[1755260826455,0.002,4624.2,4624.1,10.08299478]
[1755260826657,0.002,4624.2,4624.1,10.06136896]
[1755260827572,0.002,4624.2,4624.1,6.14566896]
[1755260827776,0.002,4624.2,4623.7,2.16273714]
[1755260827977,0.002,4624.2,4623.8,2.1627233]
[1755260828284,0.4379,4624.1,4623.9,2.16267414]
[1755260828660,0.002,4624.2,4623.8,2.16271904]
[1755260828864,0.002,4624.2,4623.3,3.45]
[1755260829209,0.002,4624.2,4623.4,2.85350157]
[1755260829411,0.002,4624.2,4623.8,2.16271709]
[1755260829558,0.002,4624.2,4623.9,2.16266548]
[1755260830385,0.002,4624.2,4623.5,3.0]
[1755260830695,0.002,4624.2,4623.9,2.16263923]
[1755260830879,0.002,4624.2,4623.3,3.45]
[1755260830880,0.002,4624.2,4622.2,0.55]
[1755260831104,0.4379,4624.1,4622.8,3.4573]
[1755260831399,0.002,4624.2,4623.7,2.16276466]
[1755260831751,0.002,4624.2,4623.7,2.16356466]
[1755260831958,0.002,4624.2,4623.7,0.0008]
[1755260832359,0.002,4624.2,4623.7,0.4571]
[1755260832572,0.002,4624.2,4623.8,2.1627233]
[1755260833191,0.002,4624.2,4623.9,2.16267561]
[1755260833801,0.002,4624.2,4623.9,2.61897561]
[1755260833995,0.002,4624.2,4623.7,0.0008]
[1755260834307,0.002,4624.2,4624.0,0.4563]
[1755260834508,0.002,4624.2,4624.0,2.61889248]
[1755260834679,0.002,4624.2,4624.1,2.16258298]
[1755260835207,0.002,4624.2,4624.0,2.61892527]
[1755260835402,0.002,4624.2,4624.1,2.16258298]
[1755260835906,0.002,4624.2,4624.1,2.61888298]
[1755260836092,0.002,4624.2,4624.1,3.5639014]
[1755260836410,0.002,4624.2,4624.1,2.61888298]
[1755260836778,0.002,4624.2,4624.1,3.08358298]
[1755260836976,0.002,4624.2,4624.1,3.1052088]
[1755260837372,0.002,4624.2,4624.1,3.08358298]
[1755260838062,0.002,4624.2,4624.1,2.16258298]
[1755260838267,0.002,4624.2,4624.1,2.61888298]
[1755260839211,0.002,4624.2,4624.1,3.0992014]
[1755260839502,0.002,4624.2,4624.1,3.5639014]
[1755260840865,0.002,4624.2,4624.1,3.0992014]
[1755260841717,0.002,4624.2,4624.1,3.5639014]
[1755260843223,0.002,4624.2,4624.1,3.0992014]
[1755260843429,0.002,4624.2,4624.1,3.5415014]
[1755260843597,0.002,4624.2,4624.1,6.9905014]
[1755260843810,0.0012,4624.2,4624.1,6.9905014]
[1755260845339,0.0012,4624.2,4624.1,6.5482014]
[1755260847045,0.0012,4624.2,4624.1,9.5482014]
[1755260847246,0.0012,4624.2,4624.1,9.9905014]
[1755260847948,0.0012,4624.2,4624.1,9.0919014]
[1755260848321,0.0012,4624.2,4624.1,3.97931842]
[1755260848519,0.0012,4624.2,4623.7,0.0008]
[1755260848720,0.0012,4624.2,4623.9,3.0]
[1755260849136,0.0012,4624.2,4623.7,0.0008]
[1755260849137,2.59581941,4624.1,4623.7,0.0008]
[1755260849327,0.4332,4624.0,4623.7,0.0008]
[1755260849520,0.4332,4623.9,4623.7,0.0008]
[1755260850530,0.4332,4623.8,4623.7,0.0008]
[1755260850745,0.0012,4624.2,4623.7,0.0008]
[1755260850945,0.4332,4623.9,4623.7,0.0008]
[1755260851523,0.0012,4624.2,4623.7,0.0008]
[1755260851738,2.5959233,4623.8,4623.7,0.0008]
[1755260851939,3.0792208,4623.8,4623.7,0.0008]
[1755260852254,0.9164975,4623.8,4623.7,0.0008]
[1755260852416,0.0012,4624.2,4623.7,0.0008]
[1755260852617,0.4344,4624.2,4623.7,2.16356903]
[1755260852818,0.0012,4624.2,4623.8,0.499]
[1755260853049,0.4332,4624.1,4623.7,0.0008]
[1755260853230,0.4332,4624.1,4623.8,2.16271664]
[1755260853439,0.0012,4624.2,4623.8,2.16351664]
[1755260853646,0.0012,4624.2,4623.8,0.0008]
[1755260853853,0.4332,4624.1,4623.8,0.0008]
[1755260854055,0.4332,4624.0,4623.8,0.0008]
[1755260854438,0.0012,4624.2,4623.8,0.0008]
[1755260854439,0.4332,4623.9,4623.8,0.0008]
[1755260860041,2.92997079,4623.9,4623.8,0.0008]
[1755260860240,2.85557079,4623.9,4623.8,0.0008]
[1755260860641,6.30357079,4623.9,4623.8,0.0008]
[1755260861156,6.37797079,4623.9,4623.8,0.0008]
[1755260862185,6.92797079,4623.9,4623.8,0.0008]
[1755260865048,7.42797079,4623.9,4623.8,0.0008]
[1755260867595,10.42797079,4623.9,4623.8,0.0008]
[1755260867750,2.71277007,4623.7,4623.6,1e-08]
[1755260867951,4.03600138,4623.7,4623.6,1e-08]
[1755260868151,5.00467264,4623.7,4623.6,1e-08]
[1755260868351,4.99775714,4623.7,4623.6,1e-08]
[1755260869777,7.91028588,4623.7,4623.6,1e-08]
[1755260870175,4.46228588,4623.7,4623.6,1e-08]
[1755260870484,7.91028588,4623.7,4623.6,1e-08]
[1755260873971,4.46228588,4623.7,4623.6,1e-08]
[1755260874177,7.46228588,4623.7,4623.6,1e-08]
[1755260874478,10.90928588,4623.7,4623.6,1e-08]
[1755260876339,10.47608588,4623.7,4623.6,1e-08]
[1755260876696,1.31631581,4623.7,4623.6,1e-08]
[1755260876881,0.002,4624.4,4623.6,0.93540001]
[1755260877217,3.447,4624.1,4623.7,0.4802]
[1755260877376,3.447,4624.1,4623.8,0.4552]
[1755260877576,3.447,4624.1,4623.9,0.4802]
[1755260877815,5.60958298,4624.1,4624.0,0.4802]
[1755260878021,5.60958298,4624.1,4623.6,1e-08]
[1755260878190,2.16270866,4623.9,4623.7,0.4802]
[1755260878386,3.447,4623.8,4623.6,1e-08]
[1755260878896,5.6097304,4623.8,4623.6,1e-08]
[1755260879100,3.447,4623.8,4623.7,0.4802]
[1755260880534,2.16277007,4623.7,4623.6,1e-08]
[1755260880701,2.16968557,4623.7,4623.6,1e-08]
[1755260880899,2.94762319,4623.7,4623.6,1e-08]
[1755260881100,3.39302319,4623.7,4623.6,1e-08]
[1755260881619,0.77793762,4623.7,4623.6,0.00080001]
[1755260881921,5.60877007,4623.7,4623.6,0.00080001]
[1755260882123,10.065464,4623.7,4623.6,0.00080001]
[1755260882741,5.71277007,4623.7,4623.6,0.00080001]
[1755260882944,9.60417007,4623.7,4623.6,0.00080001]
[1755260883910,9.15877007,4623.7,4623.6,0.00080001]
[1755260884318,10.75231716,4623.7,4623.6,0.00080001]
[1755260884718,9.74091525,4623.7,4623.6,0.00080001]
[1755260885643,6.74091525,4623.7,4623.6,0.00080001]
[1755260886041,6.74011525,4623.7,4623.6,0.00080001]
[1755260887501,7.29211525,4623.7,4623.6,0.00080001]
[1755260887706,10.75367842,4623.7,4623.6,0.00080001]
[1755260888448,10.75267842,4623.7,4623.6,0.00080001]
[1755260889930,7.30767842,4623.7,4623.6,0.00080001]
[1755260890140,10.75267842,4623.7,4623.6,0.00080001]
[1755260892970,10.75167842,4623.7,4623.6,0.00080001]
[1755260893868,6.75767842,4623.7,4623.6,0.00080001]
[1755260894085,10.20167842,4623.7,4623.6,0.00080001]
[1755260894286,7.20167842,4623.7,4623.6,0.00080001]
[1755260895899,6.74011525,4623.7,4623.6,0.00080001]
[1755260896559,3.29611525,4623.7,4623.6,0.00080001]
[1755260896754,5.60797007,4623.7,4623.6,0.00080001]
[1755260897598,3.444,4623.7,4623.6,0.00080001]
[1755260897794,5.60677007,4623.7,4623.6,0.00080001]
[1755260898683,19.2615418,4623.7,4623.6,0.00080001]
[1755260898859,19.72363298,4623.7,4623.6,0.00080001]
[1755260899873,6.06786125,4623.7,4623.6,0.00080001]
[1755260904487,2.62486125,4623.7,4623.6,0.00080001]
[1755260904687,5.61268557,4623.7,4623.6,0.00080001]
[1755260904894,5.60477007,4623.7,4623.6,0.00080001]
[1755260905110,6.06686125,4623.7,4623.6,0.00080001]
[1755260905765,2.16277007,4623.7,4623.6,0.00080001]
[1755260906007,5.60477007,4623.7,4623.6,0.00080001]
[1755260909469,0.55,4624.3,4623.6,0.00080001]
[1755260909674,2.16275993,4623.8,4623.6,0.00080001]
[1755260909893,3.441,4623.7,4623.6,0.00080001]
[1755260911003,0.55,4624.5,4623.6,0.00080001]
[1755260911202,2.16267981,4623.9,4623.6,0.00080001]
[1755260911506,3.441,4623.8,4623.6,0.00080001]
[1755260911868,5.60372465,4623.8,4623.6,0.00080001]
[1755260912272,3.441,4623.8,4623.6,0.00080001]
[1755260914814,5.60373599,4623.8,4623.6,0.00080001]
[1755260915690,0.0069155,4623.7,4623.6,0.00080001]
[1755260916091,5.6037298,4623.8,4623.6,0.00080001]
[1755260916823,0.0069155,4623.7,4623.6,0.00080001]
[1755260919117,3.441,4623.8,4623.6,0.00080001]
[1755260919415,0.0069155,4623.7,4623.6,0.00080001]
[1755260919805,2.16968557,4623.7,4623.6,0.00080001]
[1755260920716,2.16277007,4623.7,4623.6,0.00080001]
[1755260921021,2.93941546,4623.7,4623.6,0.00080001]
[1755260921808,6.37741546,4623.7,4623.6,0.00080001]
[1755260922735,2.93941546,4623.7,4623.6,0.00080001]
[1755260922885,3.438,4623.7,4623.6,0.00080001]
[1755260924695,0.002,4624.5,4623.8,2.16271889]
[1755260924944,0.002,4624.6,4624.4,2.16244269]
[1755260925126,0.002,4624.6,4624.5,5.18401988]
[1755260925440,0.002,4624.8,4624.7,2.16230241]
[1755260926189,0.002,4624.8,4624.7,2.18392543]
[1755260926830,0.002,4624.8,4624.7,2.16230241]
[1755260927839,0.002,4624.8,4624.7,2.18392543]
[1755260927990,0.002,4624.8,4624.7,5.98108386]
[1755260928293,1e-08,4624.8,4624.7,5.98108386]
[1755260929493,1e-08,4624.8,4624.7,6.53108386]
[1755260930317,1e-08,4624.8,4624.7,5.98108386]
[1755260931537,0.002,4624.9,4624.7,5.98108386]
[1755260931693,1e-08,4625.9,4625.6,3.0]
[1755260931893,0.03920001,4626.9,4626.8,2.16132099]
[1755260945043,0.03920001,4626.9,4626.1,3.43]
[1755260945044,0.03920001,4626.9,4626.2,3.0]
[1755260945337,0.03920001,4626.9,4626.3,0.8591679]
[1755260945542,2.16828078,4626.8,4626.2,0.0008]
[1755260945854,2.16828425,4626.7,4626.2,0.0008]
[1755260946142,2.59824047,4626.7,4626.2,0.0008]
[1755260946350,2.16136875,4626.7,4626.2,0.0008]
[1755260946508,2.16132782,4626.8,4626.2,0.0008]
[1755260946706,2.16832571,4626.7,4626.2,0.0008]
[1755260947414,2.16142598,4626.6,4626.2,0.0008]
[1755260947627,0.0069155,4626.5,4626.2,0.0008]
[1755260947948,2.16151978,4626.4,4626.2,0.0008]
[1755260948117,0.0069155,4626.3,4626.2,0.0008]
[1755260948445,2.16149756,4626.5,4626.2,0.0008]
[1755260948644,3.46820001,4626.9,4626.2,0.0008]
[1755260948844,3.81502001,4626.9,4626.2,0.0008]
[1755260949044,2.1615444,4626.4,4626.2,0.0008]
[1755260949252,0.0069155,4626.3,4626.2,0.0008]
[1755260949747,2.16145657,4626.6,4626.2,0.0008]
[1755260950310,2.16148314,4626.5,4626.2,0.0008]
[1755260950553,2.16148729,4626.5,4626.2,0.0008]
[1755260950754,0.0069155,4626.8,4626.2,0.0008]
[1755260950954,2.16155459,4626.3,4626.2,0.0008]
[1755260954098,2.16151612,4626.4,4626.2,0.0008]
[1755260954584,2.16155459,4626.3,4626.2,0.0008]
[1755260955300,2.16150905,4626.4,4626.2,0.0008]
[1755260955868,0.68195332,4626.6,4626.2,0.0008]
[1755260956062,2.16147982,4626.5,4626.2,0.0008]
[1755260956276,0.68195332,4626.6,4626.2,0.0008]
[1755260956891,2.16147035,4626.5,4626.2,0.0008]
[1755260958077,2.16151639,4626.4,4626.2,0.0008]
[1755260958612,3.427,4626.3,4626.2,0.0008]
[1755260960989,6.26860648,4626.3,4626.2,0.0008]
[1755260961188,7.27267341,4626.3,4626.2,0.0008]
[1755260961401,1.68411882,4626.3,4626.2,0.0008]
[1755260961576,6.81069098,4626.3,4626.2,0.0008]
[1755260961781,7.27167341,4626.3,4626.2,0.0008]
[1755260963868,8.04780306,4626.3,4626.2,0.0008]
[1755260964076,7.84777417,4626.3,4626.2,0.0008]
[1755260964482,2.16160131,4626.2,4626.1,1e-08]
[1755260964701,7.48232869,4626.2,4626.1,1e-08]
[1755260964931,7.47541319,4626.2,4626.1,1e-08]
[1755260965396,2.71202192,4625.3,4625.2,0.001]
[1755260965586,6.13702192,4625.3,4625.2,0.001]
[1755260965785,6.59800435,4625.3,4625.2,0.001]
[1755260966006,7.27114074,4625.3,4625.2,0.001]
[1755260966885,7.27114074,4625.3,4624.2,0.001]
[1755260966886,2.71248945,4624.3,4624.2,0.001]
[1755260967084,6.14440495,4624.3,4624.2,0.001]
[1755260967343,6.13748945,4624.3,4624.2,0.001]
[1755260967636,6.96748037,4624.3,4624.2,0.001]
[1755260970400,6.96668037,4624.3,4624.2,0.001]
[1755260974398,6.13668945,4624.3,4624.2,0.001]
[1755260974790,3.975,4624.3,4624.2,0.001]
[1755260975226,6.13748945,4624.3,4624.2,0.001]
[1755260975929,2.2486577,4625.4,4624.2,0.001]
[1755260976234,0.55,4625.0,4624.2,0.001]
[1755260976433,2.16248114,4624.4,4624.2,0.001]
[1755260976636,5.58548945,4624.3,4624.2,0.001]
[1755260977006,6.13548945,4624.3,4624.2,0.001]
[1755260977334,6.96527837,4624.3,4624.2,0.001]
[1755260981832,6.96527837,4624.3,4624.2,0.0018]
[1755260983408,6.13548945,4624.3,4624.2,0.0018]
[1755260985209,6.13348945,4624.3,4624.2,0.0018]
[1755260986416,6.13348945,4624.3,4624.1,0.041]
[1755260986417,9.13348945,4624.3,4624.1,0.041]
[1755260986626,0.55,4623.6,4620.6,2.16421796]
[1755260986842,2.16333153,4622.5,4622.4,0.108]
[1755260987022,5.58333153,4622.5,4622.4,0.108]
[1755260987510,2.16340088,4622.4,4621.5,2.16377351]
[1755260987716,2.16306168,4623.1,4621.4,0.001]
[1755260987717,3.42,4622.3,4621.4,0.001]
[1755260987911,5.58347193,4622.2,4621.4,0.001]
[1755260988502,6.59355042,4622.2,4621.4,0.001]
[1755260989056,6.13347193,4622.2,4621.4,0.001]
[1755260989346,6.59356567,4622.2,4621.4,0.001]
[1755260990650,6.59356567,4622.2,4620.7,2.16415134]
[1755260990651,0.55,4621.5,4620.7,2.16415134]
[1755260990802,3.421,4621.4,4620.7,0.43284453]
[1755260990999,3.421,4621.6,4620.1,0.025]
[1755260991603,2.17071513,4621.5,4620.3,2.16435467]
[1755260991802,0.0069155,4621.5,4620.1,0.025]
[1755260992006,3.4279155,4621.6,4620.8,2.16412264]
[1755260992256,3.4279155,4621.6,4620.4,3.0]
[1755260992257,0.0069155,4621.5,4620.4,3.0]
[1755260992560,0.0069155,4621.5,4620.1,0.025]
[1755260992849,3.421,4621.6,4620.1,0.025]
[1755260993050,3.421,4621.6,4620.6,2.16419778]
[1755260993259,3.421,4621.6,4620.1,0.025]
[1755260993407,5.58479055,4621.6,4620.1,0.025]
[1755260993610,3.421,4621.6,4620.1,0.24395495]
[1755260993861,3.421,4621.6,4620.3,3.0]
[1755260994146,3.421,4621.6,4620.9,2.16407691]
[1755260994318,3.421,4621.6,4620.1,0.025]
[1755260994745,3.421,4621.6,4620.2,2.16440846]
[1755260994950,3.421,4621.6,4620.8,2.16409355]
[1755260995547,3.421,4621.6,4620.9,2.16406087]
[1755260995748,3.421,4621.6,4620.7,2.16415791]
[1755260995911,3.65111318,4621.6,4620.2,2.16440846]
[1755260996106,3.65111318,4621.6,4620.6,2.16420924]
[1755260996528,3.65111318,4621.6,4620.1,0.025]
[1755260996753,3.421,4621.6,4620.1,0.025]
[1755260996961,3.421,4621.6,4620.9,2.16407391]
[1755260997123,3.421,4621.6,4620.8,2.16411887]
[1755260997518,3.421,4621.6,4620.1,0.025]
[1755260997519,3.421,4621.6,4620.9,2.16407556]
[1755260998055,3.421,4621.6,4620.8,2.16411367]
[1755260998452,3.421,4621.6,4620.3,2.16431793]
[1755260998655,0.55,4621.0,4620.1,0.025]
[1755260998863,0.55,4620.8,4620.1,0.025]
[1755260999031,0.55,4620.6,4620.1,0.025]
[1755260999647,0.0069155,4620.5,4620.1,0.025]
[1755260999824,0.45227721,4620.5,4620.1,0.025]
[1755261000170,0.55,4620.2,4620.1,0.025]
[1755261000464,5.72132396,4620.2,4620.1,0.025]
[1755261000756,6.3728215,4620.2,4620.1,0.025]
[1755261000918,0.45914857,4620.2,4620.1,0.025]
[1755261001118,6.97,4620.2,4619.8,1e-08]
[1755261001321,2.71487703,4619.2,4618.1,0.04]
[1755261001521,9.79993586,4619.2,4618.1,0.04]
[1755261001829,9.79302036,4619.2,4618.1,0.04]
[1755261002031,0.65814333,4619.2,4618.1,0.04]
[1755261002230,2.72179253,4619.2,4618.1,0.04]
[1755261002432,7.03130456,4619.2,4618.1,0.04]
[1755261002719,7.22297806,4619.2,4618.1,0.04]
[1755261002912,2.16506451,4618.8,4618.1,0.04]
[1755261003166,6.13506451,4618.8,4618.1,0.04]
[1755261003375,9.79237773,4618.8,4618.1,0.04]
[1755261003529,10.8729806,4618.8,4618.1,0.04]
[1755261003720,10.30156221,4618.8,4618.1,0.04]
[1755261003918,11.06428046,4618.8,4618.1,0.04]
[1755261004119,6.88156221,4618.8,4618.1,0.04]
[1755261004465,2.7153458,4618.2,4618.1,1e-08]
[1755261004631,10.28763636,4618.2,4618.1,1e-08]
[1755261004834,10.28072086,4618.2,4618.1,1e-08]
[1755261005171,2.71562716,4617.6,4617.1,1e-08]
[1755261005335,2.71581477,4617.2,4617.1,1e-08]
[1755261005550,0.55,4617.1,4616.1,1e-08]
[1755261005752,5.71628395,4616.2,4616.1,1e-08]
[1755261005953,3.55,4616.1,4615.1,1e-08]
[1755261006142,3.55,4616.1,4609.3,2.16948128]
[1755261006143,2.16722282,4614.3,4609.3,2.16948128]
[1755261006346,0.1,4611.0,4606.1,0.04]
[1755261006650,0.1,4611.0,4603.8,1.01181719]
[1755261006651,0.1,4605.2,4604.1,0.03]
[1755261006849,0.1,4604.2,4604.1,0.03]
[1755261007084,0.1,4603.2,4601.1,0.04]
[1755261007297,0.1,4602.2,4601.1,0.04]
[1755261007453,0.1,4601.2,4601.1,0.04]
[1755261007655,0.74518691,4601.2,4601.1,0.04]
[1755261007843,3.09328691,4601.3,4600.2,0.00515564]
[1755261008189,1.068796,4601.9,4600.2,0.00515564]
[1755261008190,0.19647822,4601.2,4600.2,0.00515564]
[1755261008358,1.068796,4601.9,4600.2,0.00515564]
[1755261008687,0.56054414,4603.6,4600.2,0.00515564]
[1755261008982,0.0069155,4603.5,4600.3,0.21770224]
[1755261009183,0.19408939,4603.4,4600.3,0.21770224]
[1755261009390,0.0069155,4603.3,4600.3,0.21770224]
[1755261009553,0.39266441,4604.4,4600.4,4.21373724]
[1755261009755,0.04,4605.9,4600.4,4.21373724]
[1755261009756,0.19288349,4604.3,4600.7,0.1]
[1755261009943,0.04,4603.9,4600.8,0.02173535]
[1755261010147,0.04,4603.9,4600.6,4.215]
[1755261010148,0.04,4602.9,4600.3,0.21770224]
[1755261010345,0.19290219,4606.5,4600.9,1.29831062]
[1755261010557,0.04,4606.9,4601.9,0.1]
[1755261010784,0.04,4606.9,4602.8,0.1]
[1755261010953,30.0,4605.4,4600.4,0.16924165]
[1755261011162,30.0,4605.3,4600.5,30.17173676]
[1755261011479,0.04,4606.9,4600.7,1.04200781]
[1755261011682,0.02172968,4606.8,4601.0,1.00571268]
[1755261011884,0.02172968,4606.8,4601.0,10.16659641]
[1755261012069,0.12172968,4606.8,4600.1,1.04905756]
[1755261012271,0.04,4606.9,4601.2,1.04160784]
[1755261012474,0.04,4609.9,4601.5,1.08414746]
[1755261012657,0.02172968,4608.8,4602.1,0.04]
[1755261012995,0.1392,4608.9,4603.1,0.04]
[1755261012996,0.0392,4608.9,4603.1,0.04]
[1755261013175,0.0392,4608.9,4604.1,0.04]
[1755261013380,0.0392,4608.9,4604.3,2.92]
[1755261013548,0.0392,4608.9,4604.4,1.65233119]
[1755261013749,0.0392,4608.9,4604.5,40.0]
[1755261013973,0.0392,4608.9,4604.6,0.89451206]
[1755261014144,0.04,4609.9,4604.7,11.06802959]
[1755261014345,0.04,4609.9,4604.9,1.0534521]
[1755261014587,0.04,4610.9,4605.1,1.01014434]
[1755261014788,0.04,4610.9,4605.3,1.03282231]
[1755261014947,0.32624177,4611.1,4606.1,0.04]
[1755261015149,0.04,4613.9,4606.3,1.07920568]
[1755261015150,0.1,4613.7,4606.3,1.07920568]
[1755261015351,0.04,4613.9,4606.5,1.08693208]
[1755261015562,0.02172968,4613.6,4606.7,4.01203939]
[1755261015752,0.19153787,4612.8,4606.9,4.08641726]
[1755261015976,0.19183122,4612.7,4607.1,4.09526589]
[1755261016180,0.04,4613.9,4607.0,40.56319032]
[1755261016181,0.04,4613.9,4607.3,4.08089175]
[1755261016496,0.04,4614.9,4607.5,4.00181797]
[1755261016699,0.04,4614.9,4607.8,1.00890389]
[1755261016868,0.04,4616.9,4608.0,4.09400446]
[1755261017070,0.191831,4616.3,4608.2,4.0812296]
[1755261017390,0.1,4615.6,4609.2,1.02902702]
[1755261017600,0.04,4616.9,4609.4,1.03812894]
[1755261017765,0.1,4616.8,4609.6,4.08096551]
[1755261018104,0.04,4616.9,4610.2,1.03511462]
[1755261018391,0.04,4616.9,4611.2,1.05163936]
[1755261018551,0.04,4616.9,4611.4,4.07262901]
[1755261018757,0.27671728,4617.5,4612.2,1.07462502]
[1755261018985,0.00515456,4617.5,4612.4,4.02140633]
[1755261019200,0.00515456,4617.5,4613.1,0.04]
[1755261019495,0.04,4617.9,4613.3,3.0]
[1755261019696,0.04,4618.9,4613.5,3.0]
[1755261020003,0.04,4622.9,4613.7,4.04810822]
[1755261020156,0.04,4622.9,4613.9,4.05034662]
[1755261020157,0.02372968,4622.5,4613.9,4.05034662]
[1755261020356,0.002,4622.5,4614.1,4.09980105]
[1755261020564,0.002,4622.5,4621.8,0.108]
[1755261020919,0.186699,4623.2,4619.5,3.0]
[1755261021062,0.086699,4623.2,4619.5,1.85421644]
[1755261021262,0.1,4622.9,4618.2,6.506]
[1755261021462,0.1,4623.3,4618.2,6.506]
[1755261021711,0.002,4623.5,4618.3,0.01073288]
[1755261022004,0.002,4623.5,4618.4,10.0]
[1755261022304,0.002,4623.5,4618.5,12.76519458]
[1755261022505,0.002,4623.5,4618.7,0.55]
[1755261022663,0.002,4623.5,4619.2,0.55]
[1755261022865,0.002,4623.5,4619.4,0.55]
[1755261023067,0.002,4624.3,4619.6,0.55]
[1755261023265,0.04,4624.9,4621.2,0.55]
[1755261023512,0.1,4626.6,4621.4,3.55]
[1755261023694,0.04120001,4626.9,4621.6,3.55]
[1755261023900,0.04120001,4626.9,4621.8,3.55]
[1755261024229,0.04,4628.9,4622.0,3.55]
[1755261024430,0.04,4628.9,4623.4,1.0192974]
[1755261024725,0.04,4628.9,4623.3,0.60334695]
[1755261024726,0.04,4628.9,4624.1,1.31265686]
[1755261024865,0.04,4629.9,4624.1,1.31265686]
[1755261024866,0.04,4629.9,4624.5,1.57431556]
[1755261025065,0.04,4629.9,4624.7,0.55]
[1755261025317,0.35129562,4634.5,4630.0,0.55]
[1755261025475,0.00515455,4634.5,4630.1,11.53316325]
[1755261025667,0.00515455,4634.5,4630.2,35.21159709]
[1755261025861,0.00515455,4634.5,4630.3,8.68516185]
[1755261026064,0.00515455,4634.5,4630.2,5.201]
[1755261026065,3.3582,4634.4,4630.2,4.34771093]
[1755261026289,0.00515455,4634.5,4630.2,0.96725625]
[1755261026501,3.3582,4634.4,4629.9,5.46935258]
[1755261026798,0.33633546,4634.3,4630.0,30.54693526]
[1755261026999,0.00515455,4634.5,4630.0,30.82495865]
[1755261027201,0.04,4635.9,4630.1,30.27675764]
[1755261027358,0.04,4635.9,4630.6,0.55]
[1755261027561,0.04,4635.9,4630.5,0.60334695]
[1755261027562,0.04,4635.9,4630.8,3.55]
[1755261027762,0.06694604,4638.9,4630.5,0.60334695]
[1755261027763,0.04,4638.9,4635.1,0.55]
[1755261027988,0.04,4638.9,4635.3,3.0]
[1755261028203,0.04,4638.9,4635.5,3.0]
[1755261028403,0.04,4638.9,4635.7,3.0]
[1755261028723,0.04,4638.9,4633.8,1.23226882]
[1755261028889,0.1,4638.5,4633.4,10.0]
[1755261029083,0.1,4637.5,4632.2,1.06260627]
[1755261029417,4.555882,4637.4,4632.3,30.0]
[1755261029604,0.4555882,4637.3,4632.4,2.20446404]
[1755261029775,0.04,4638.9,4632.5,30.0]
[1755261029982,0.055882,4638.8,4632.6,6.487]
[1755261030191,0.04,4638.9,4633.1,0.04]
[1755261030391,0.04,4638.9,4636.2,0.55]
[1755261030711,0.04,4638.9,4636.4,3.0]
[1755261030920,0.04,4638.9,4636.5,32.7717]
[1755261031116,0.01530559,4640.4,4636.6,31.18088147]
[1755261031320,0.01530559,4640.4,4636.7,6.487]
[1755261031676,0.01530559,4640.4,4636.8,20.323]
[1755261031881,0.01530559,4640.4,4636.7,19.148]
[1755261032194,0.01530559,4640.4,4636.8,36.487]
[1755261032396,0.01530559,4640.4,4636.8,6.487]
[1755261032596,0.1,4639.7,4636.6,0.80361375]
[1755261032803,0.1,4640.0,4635.9,1.10882063]
[1755261032998,0.04,4636.9,4635.9,1.10882063]
[1755261033324,0.04,4636.9,4635.9,7.28470269]
[1755261033526,0.00530559,4640.4,4637.1,0.04]
[1755261033728,0.00530559,4640.4,4637.3,3.55]
[1755261033928,0.00530559,4640.4,4637.2,45.184]
[1755261033929,0.00530559,4640.4,4638.8,3.55]
[1755261034081,0.00530559,4640.4,4639.0,3.55]
[1755261034287,0.00530559,4640.4,4637.6,3.0]
[1755261034511,0.00530559,4640.4,4637.8,3.0]
[1755261034713,0.00530559,4640.4,4637.1,0.04]
[1755261034897,0.1,4640.3,4638.1,0.04]
[1755261035232,0.00530559,4640.4,4638.9,3.0]
[1755261035431,0.15230502,4643.9,4638.1,0.04]
[1755261035432,0.1,4643.1,4639.2,23.73763317]
[1755261035650,0.04,4643.9,4640.5,3.55]
[1755261035831,0.04,4643.9,4640.7,3.55]
[1755261036235,0.04,4643.9,4642.3,23.18763317]
[1755261036439,0.04,4643.9,4639.2,0.24546215]
[1755261036440,0.14,4643.9,4642.4,2.20446404]
[1755261036769,0.04,4643.9,4641.8,3.55]
[1755261036913,0.04,4643.9,4641.8,0.55]
[1755261037261,0.04,4643.9,4640.7,0.55]